[Event "*** Titled Tuesday Blitz"]
[Site "Chess.com"]
[Date "2018.09.04"]
[Round "1"]
[White "VerdeNotte"]
[Black "bugsbunny444"]
[Result "1-0"]
[WhiteElo "2817"]
[BlackElo "2422"]
[TimeControl "180+2"]
[EndTime "13:46:26 PDT"]
[Termination "VerdeNotte won on time"]

1. c4 {[%clk 0:03:01.7]} 1... b6 {[%clk 0:03:00.6]} 2. Nc3 {[%clk 0:02:54.2]}
2... Bb7 {[%clk 0:03:01.8]} 3. e4 {[%clk 0:02:53.2]} 3... e6 {[%clk 0:03:03]} 4.
g3 {[%clk 0:02:53.4]} 4... f5 {[%clk 0:03:03.3]} 5. Bg2 {[%clk 0:02:53.5]} 5...
Nf6 {[%clk 0:03:04.4]} 6. d3 {[%clk 0:02:54.7]} 6... fxe4 {[%clk 0:03:04.2]} 7.
Nge2 {[%clk 0:02:51.4]} 7... Nc6 {[%clk 0:03:03.2]} 8. Nxe4 {[%clk 0:02:49]}
8... Nxe4 {[%clk 0:02:33.3]} 9. dxe4 {[%clk 0:02:46.9]} 9... Bc5 {[%clk
0:02:32.1]} 10. O-O {[%clk 0:02:41]} 10... Ne5 {[%clk 0:02:06.1]} 11. Nf4 {[%clk
0:02:33.7]} 11... O-O {[%clk 0:02:00.3]} 12. b3 {[%clk 0:02:31.5]} 12... Qf6
{[%clk 0:01:32]} 13. Bb2 {[%clk 0:02:18.1]} 13... Nf3+ {[%clk 0:00:34.8]} 14.
Bxf3 {[%clk 0:02:17.7]} 14... Qxb2 {[%clk 0:00:35.3]} 15. Qxd7 {[%clk
0:02:18.7]} 15... e5 {[%clk 0:00:24]} 16. Nd3 {[%clk 0:02:14.8]} 16... Qd4
{[%clk 0:00:23.7]} 17. Nxc5 {[%clk 0:02:12.1]} 17... Qxc5 {[%clk 0:00:12.7]} 18.
Bg2 {[%clk 0:02:07.2]} 18... Rad8 {[%clk 0:00:09.4]} 19. Qe6+ {[%clk 0:02:07.8]}
19... Kh8 {[%clk 0:00:10.8]} 20. b4 {[%clk 0:02:00.4]} 20... Bc8 {[%clk
0:00:05.5]} 21. bxc5 {[%clk 0:01:56.1]} 21... Bxe6 {[%clk 0:00:06.1]} 22. cxb6
{[%clk 0:01:57.2]} 22... axb6 {[%clk 0:00:08]} 23. Rfc1 {[%clk 0:01:57.4]} 23...
Rd2 {[%clk 0:00:07.6]} 24. f3 {[%clk 0:01:58]} 24... Ra8 {[%clk 0:00:05.9]} 25.
a3 {[%clk 0:01:53.9]} 25... Ra5 {[%clk 0:00:05.7]} 26. Bf1 {[%clk 0:01:44.5]}
26... g5 {[%clk 0:00:06.2]} 27. Rc3 {[%clk 0:01:38.6]} 27... Kg7 {[%clk
0:00:06.4]} 28. c5 {[%clk 0:01:35.3]} 28... Rxc5 {[%clk 0:00:04.8]} 29. Rxc5
{[%clk 0:01:36.2]} 29... bxc5 {[%clk 0:00:06.7]} 30. Rc1 {[%clk 0:01:37.7]}
30... c4 {[%clk 0:00:07.6]} 31. Bxc4 {[%clk 0:01:38.2]} 31... Bxc4 {[%clk
0:00:09.1]} 32. Rxc4 {[%clk 0:01:40.1]} 32... Rd3 {[%clk 0:00:10.6]} 33. Rxc7+
{[%clk 0:01:40.9]} 33... Kg6 {[%clk 0:00:12.2]} 34. Rc6+ {[%clk 0:01:40.5]}
34... Kf7 {[%clk 0:00:11.3]} 35. a4 {[%clk 0:01:38.2]} 35... Rxf3 {[%clk
0:00:11.6]} 36. Rh6 {[%clk 0:01:31.2]} 36... Kg7 {[%clk 0:00:06.7]} 37. Re6
{[%clk 0:01:31.8]} 37... Ra3 {[%clk 0:00:06.4]} 38. Rxe5 {[%clk 0:01:31.9]}
38... Rxa4 {[%clk 0:00:07.8]} 39. Rxg5+ {[%clk 0:01:32.9]} 39... Kf6 {[%clk
0:00:09.3]} 40. Rf5+ {[%clk 0:01:34.1]} 40... Ke6 {[%clk 0:00:10.2]} 41. Rh5
{[%clk 0:01:33.9]} 41... Rxe4 {[%clk 0:00:06.9]} 42. Rxh7 {[%clk 0:01:34.8]}
42... Re2 {[%clk 0:00:08.1]} 43. Rh4 {[%clk 0:01:33.7]} 43... Kf5 {[%clk
0:00:08.6]} 44. Rf4+ {[%clk 0:01:34.8]} 44... Kg5 {[%clk 0:00:09]} 45. Rf2
{[%clk 0:01:36.4]} 45... Re3 {[%clk 0:00:05.2]} 46. Kg2 {[%clk 0:01:37.5]} 46...
Ra3 {[%clk 0:00:05.6]} 47. Rb2 {[%clk 0:01:35.8]} 47... Rc3 {[%clk 0:00:05.9]}
48. h4+ {[%clk 0:01:36.3]} 48... Kg4 {[%clk 0:00:06.1]} 49. Rb4+ {[%clk
0:01:36.9]} 49... Kh5 {[%clk 0:00:06.6]} 50. Rb5+ {[%clk 0:01:38.2]} 50... Kh6
{[%clk 0:00:06.7]} 51. Kh3 {[%clk 0:01:38.1]} 51... Ra3 {[%clk 0:00:05.5]} 52.
Rb6+ {[%clk 0:01:38]} 52... Kh5 {[%clk 0:00:05.6]} 53. Rb5+ {[%clk 0:01:39.2]}
53... Kh6 {[%clk 0:00:06.8]} 54. Rf5 {[%clk 0:01:39.5]} 54... Kg6 {[%clk
0:00:07.7]} 55. Rf1 {[%clk 0:01:34.7]} 55... Kh5 {[%clk 0:00:08]} 56. Kg2 {[%clk
0:01:32.6]} 56... Kg4 {[%clk 0:00:08.3]} 57. Rf4+ {[%clk 0:01:33.5]} 57... Kh5
{[%clk 0:00:09.3]} 58. Re4 {[%clk 0:01:30.9]} 58... Rb3 {[%clk 0:00:09.1]} 59.
Kf2 {[%clk 0:01:31.9]} 59... Ra3 {[%clk 0:00:07.3]} 60. Re3 {[%clk 0:01:33]}
60... Ra1 {[%clk 0:00:04.7]} 61. Re5+ {[%clk 0:01:32.8]} 61... Kh6 {[%clk
0:00:03.5]} 62. Kf3 {[%clk 0:01:33.7]} 62... Ra3+ {[%clk 0:00:04.1]} 63. Kf4
{[%clk 0:01:34.4]} 63... Ra4+ {[%clk 0:00:04.1]} 64. Re4 {[%clk 0:01:33.9]}
64... Ra8 {[%clk 0:00:05.7]} 65. Re6+ {[%clk 0:01:33.6]} 65... Kg7 {[%clk
0:00:05.8]} 66. g4 {[%clk 0:01:31.3]} 66... Ra4+ {[%clk 0:00:05.6]} 67. Kf5
{[%clk 0:01:31.8]} 67... Ra5+ {[%clk 0:00:06.9]} 68. Re5 {[%clk 0:01:32.7]}
68... Ra1 {[%clk 0:00:07]} 69. Re7+ {[%clk 0:01:33.2]} 69... Kf8 {[%clk
0:00:06.3]} 70. Rb7 {[%clk 0:01:32.5]} 70... Ra5+ {[%clk 0:00:05.1]} 71. Kg6
{[%clk 0:01:33.4]} 71... Ra6+ {[%clk 0:00:06.3]} 72. Kh5 {[%clk 0:01:33.6]}
72... Kg8 {[%clk 0:00:05]} 73. g5 {[%clk 0:01:34.7]} 73... Rc6 {[%clk
0:00:05.5]} 74. g6 {[%clk 0:01:35.4]} 74... Ra6 {[%clk 0:00:05.2]} 75. Kh6
{[%clk 0:01:36.5]} 75... Ra8 {[%clk 0:00:06.5]} 76. h5 {[%clk 0:01:33.4]} 76...
Rc8 {[%clk 0:00:07.4]} 77. Rg7+ {[%clk 0:01:31.1]} 77... Kh8 {[%clk 0:00:08.2]}
78. Re7 {[%clk 0:01:28.4]} 78... Kg8 {[%clk 0:00:09.1]} 79. Kg5 {[%clk 0:01:28]}
79... Ra8 {[%clk 0:00:08.4]} 80. h6 {[%clk 0:01:27.4]} 80... Rb8 {[%clk
0:00:08.5]} 81. Kf6 {[%clk 0:01:25.3]} 81... Rb6+ {[%clk 0:00:05.9]} 82. Re6
{[%clk 0:01:25.8]} 82... Rb8 {[%clk 0:00:07.1]} 83. Ra6 {[%clk 0:01:14.7]} 83...
Rc8 {[%clk 0:00:06.4]} 84. h7+ {[%clk 0:00:56.5]} 84... Kh8 {[%clk 0:00:07.1]}
85. Kg5 {[%clk 0:00:57.7]} 1-0

[Event "*** Titled Tuesday Blitz"]
[Site "Chess.com"]
[Date "2018.09.04"]
[Round "1"]
[White "Manukyan_Artak"]
[Black "Gareth-Bale11"]
[Result "1/2-1/2"]
[WhiteElo "2307"]
[BlackElo "2617"]
[TimeControl "180+2"]
[EndTime "13:46:27 PDT"]
[Termination "Game drawn - insufficient material"]

1. e4 {[%clk 0:03:01.9]} 1... e5 {[%clk 0:02:57.9]} 2. Nf3 {[%clk 0:03:02.5]}
2... Nc6 {[%clk 0:02:59]} 3. d4 {[%clk 0:03:03.1]} 3... exd4 {[%clk 0:02:59.6]}
4. Nxd4 {[%clk 0:03:04]} 4... Bc5 {[%clk 0:03:00.9]} 5. Nxc6 {[%clk 0:03:04.9]}
5... Qf6 {[%clk 0:03:01]} 6. Qf3 {[%clk 0:03:04.1]} 6... dxc6 {[%clk 0:03:01.9]}
7. Bc4 {[%clk 0:03:03.8]} 7... Ne7 {[%clk 0:03:02.3]} 8. Nc3 {[%clk 0:03:01.1]}
8... Ng6 {[%clk 0:02:54.1]} 9. Qxf6 {[%clk 0:02:51.4]} 9... gxf6 {[%clk
0:02:56]} 10. Bh6 {[%clk 0:02:35.8]} 10... b5 {[%clk 0:02:42.5]} 11. Be2 {[%clk
0:02:35.8]} 11... f5 {[%clk 0:02:39.5]} 12. O-O-O {[%clk 0:02:28.1]} 12... Bf8
{[%clk 0:02:12.8]} 13. Bxf8 {[%clk 0:02:23]} 13... Kxf8 {[%clk 0:02:14.7]} 14.
exf5 {[%clk 0:02:21.1]} 14... Bxf5 {[%clk 0:02:16.6]} 15. Bf3 {[%clk 0:02:22.2]}
15... Ne5 {[%clk 0:02:16.7]} 16. Be4 {[%clk 0:02:18.7]} 16... Bxe4 {[%clk
0:01:13.2]} 17. Nxe4 {[%clk 0:02:18]} 17... Kg7 {[%clk 0:01:14.5]} 18. Rhe1
{[%clk 0:01:58.9]} 18... Rad8 {[%clk 0:00:59]} 19. f4 {[%clk 0:01:43.3]} 19...
Rxd1+ {[%clk 0:00:50.2]} 20. Kxd1 {[%clk 0:01:44.2]} 20... Nc4 {[%clk
0:00:24.5]} 21. b3 {[%clk 0:01:42.5]} 21... Rd8+ {[%clk 0:00:25.6]} 22. Kc1
{[%clk 0:01:38.8]} 22... Nb6 {[%clk 0:00:26.9]} 23. Nc5 {[%clk 0:01:16.8]} 23...
Nd5 {[%clk 0:00:24.9]} 24. Nd3 {[%clk 0:01:13.5]} 24... a5 {[%clk 0:00:20.5]}
25. a3 {[%clk 0:01:08.5]} 25... h5 {[%clk 0:00:20.5]} 26. g3 {[%clk 0:01:09.1]}
26... Kf6 {[%clk 0:00:19.9]} 27. Ne5 {[%clk 0:01:07.3]} 27... Rd6 {[%clk
0:00:20.8]} 28. Nf3 {[%clk 0:01:03.6]} 28... Kg7 {[%clk 0:00:21.5]} 29. Re5
{[%clk 0:01:00.1]} 29... f6 {[%clk 0:00:21.6]} 30. Rxh5 {[%clk 0:00:57.8]} 30...
Nc3 {[%clk 0:00:22.7]} 31. b4 {[%clk 0:00:33.8]} 31... axb4 {[%clk 0:00:19.9]}
32. axb4 {[%clk 0:00:34.7]} 32... Na2+ {[%clk 0:00:21.7]} 33. Kb2 {[%clk
0:00:35.8]} 33... Nxb4 {[%clk 0:00:23.6]} 34. Nh4 {[%clk 0:00:34.1]} 34... Rd7
{[%clk 0:00:24.7]} 35. Rc5 {[%clk 0:00:32.7]} 35... Kf7 {[%clk 0:00:25]} 36. Nf5
{[%clk 0:00:33.4]} 36... Ke6 {[%clk 0:00:25.6]} 37. h4 {[%clk 0:00:33.1]} 37...
Nd5 {[%clk 0:00:23.9]} 38. Nd4+ {[%clk 0:00:29.9]} 38... Kf7 {[%clk 0:00:24.9]}
39. Nxc6 {[%clk 0:00:30.9]} 39... Ne3 {[%clk 0:00:25.4]} 40. Rxb5 {[%clk
0:00:27.9]} 40... Rd2 {[%clk 0:00:26.2]} 41. Nb4 {[%clk 0:00:29.1]} 41... Rg2
{[%clk 0:00:26.9]} 42. Rb7 {[%clk 0:00:30.2]} 42... Rxg3 {[%clk 0:00:27.6]} 43.
Rxc7+ {[%clk 0:00:31.6]} 43... Ke6 {[%clk 0:00:29]} 44. h5 {[%clk 0:00:28]}
44... Rh3 {[%clk 0:00:29.9]} 45. Rc5 {[%clk 0:00:28]} 45... Nf5 {[%clk
0:00:30.4]} 46. Nc6 {[%clk 0:00:26.4]} 46... Rh2 {[%clk 0:00:27.1]} 47. Rc4
{[%clk 0:00:22.5]} 47... Kd5 {[%clk 0:00:27.4]} 48. Na5 {[%clk 0:00:17.6]} 48...
Rxh5 {[%clk 0:00:27.9]} 49. Rb4 {[%clk 0:00:18.1]} 49... Rh2 {[%clk 0:00:28.7]}
50. Rb5+ {[%clk 0:00:18.7]} 50... Ke4 {[%clk 0:00:29.9]} 51. Nc4 {[%clk
0:00:19.9]} 51... Nd4 {[%clk 0:00:29.9]} 52. Rb4 {[%clk 0:00:18.1]} 52... Rxc2+
{[%clk 0:00:30.4]} 53. Kb1 {[%clk 0:00:20]} 53... Rf2 {[%clk 0:00:31.4]} 54.
Nd6+ {[%clk 0:00:21.1]} 54... Kd3 {[%clk 0:00:32.7]} 55. Ne8 {[%clk 0:00:21]}
55... Kc3 {[%clk 0:00:31.9]} 56. Rxd4 {[%clk 0:00:19.2]} 56... Kxd4 {[%clk
0:00:32.3]} 57. Nxf6 {[%clk 0:00:21.1]} 57... Rf1+ {[%clk 0:00:33.2]} 58. Kc2
{[%clk 0:00:21.8]} 58... Rf2+ {[%clk 0:00:34.5]} 59. Kb3 {[%clk 0:00:21.9]}
59... Rxf4 {[%clk 0:00:36.4]} 60. Nd7 {[%clk 0:00:22.9]} 60... Rf5 {[%clk
0:00:36.5]} 61. Kb4 {[%clk 0:00:22.4]} 61... Rf1 {[%clk 0:00:37.3]} 62. Nb6
{[%clk 0:00:23]} 62... Rb1+ {[%clk 0:00:37.8]} 63. Ka5 {[%clk 0:00:24.9]} 63...
Kc5 {[%clk 0:00:37.6]} 64. Na4+ {[%clk 0:00:26]} 64... Kc6 {[%clk 0:00:38.8]}
65. Nc3 {[%clk 0:00:26.1]} 65... Rb2 {[%clk 0:00:39.1]} 66. Na4 {[%clk
0:00:23.5]} 66... Rb3 {[%clk 0:00:39.8]} 67. Ka6 {[%clk 0:00:19.8]} 67... Rb5
{[%clk 0:00:37.9]} 68. Nc3 {[%clk 0:00:19.2]} 68... Rc5 {[%clk 0:00:34.3]} 69.
Na4 {[%clk 0:00:19.6]} 69... Rc4 {[%clk 0:00:35.1]} 70. Ka5 {[%clk 0:00:20.6]}
70... Rc2 {[%clk 0:00:31.5]} 71. Kb4 {[%clk 0:00:21.5]} 71... Ra2 {[%clk
0:00:30.7]} 72. Nc3 {[%clk 0:00:22.6]} 72... Rg2 {[%clk 0:00:32]} 73. Kc4 {[%clk
0:00:22.9]} 73... Rg4+ {[%clk 0:00:33.1]} 74. Kd3 {[%clk 0:00:24.2]} 74... Kc5
{[%clk 0:00:33.8]} 75. Ne4+ {[%clk 0:00:25.2]} 75... Kc6 {[%clk 0:00:35.1]} 76.
Nc3 {[%clk 0:00:26.2]} 76... Kd6 {[%clk 0:00:36.2]} 77. Ne4+ {[%clk 0:00:27]}
77... Ke5 {[%clk 0:00:37]} 78. Nc3 {[%clk 0:00:28.2]} 78... Rg3+ {[%clk
0:00:38]} 79. Kc4 {[%clk 0:00:29]} 79... Rf3 {[%clk 0:00:39.5]} 80. Nb5 {[%clk
0:00:29.4]} 80... Rf4+ {[%clk 0:00:40.3]} 81. Kc5 {[%clk 0:00:30.3]} 81... Rf1
{[%clk 0:00:41.8]} 82. Nd6 {[%clk 0:00:29.6]} 82... Rc1+ {[%clk 0:00:42.6]} 83.
Nc4+ {[%clk 0:00:30.9]} 83... Ke6 {[%clk 0:00:44.4]} 84. Kd4 {[%clk 0:00:31.8]}
84... Rc2 {[%clk 0:00:45.7]} 85. Ne3 {[%clk 0:00:32.8]} 85... Rd2+ {[%clk
0:00:46.9]} 86. Ke4 {[%clk 0:00:34.2]} 86... Ra2 {[%clk 0:00:47.4]} 87. Kd4
{[%clk 0:00:34.4]} 87... Ra4+ {[%clk 0:00:49.3]} 88. Kd3 {[%clk 0:00:35.6]}
88... Ke5 {[%clk 0:00:50.1]} 89. Nc4+ {[%clk 0:00:36.6]} 89... Kd5 {[%clk
0:00:51.3]} 90. Nb6+ {[%clk 0:00:37]} 90... Kc5 {[%clk 0:00:52.1]} 91. Nxa4+
{[%clk 0:00:38.9]} 1/2-1/2

[Event "*** Titled Tuesday Blitz"]
[Site "Chess.com"]
[Date "2018.09.04"]
[Round "1"]
[White "northridgehawk"]
[Black "suyu28"]
[Result "0-1"]
[WhiteElo "2120"]
[BlackElo "2503"]
[TimeControl "180+2"]
[EndTime "13:46:45 PDT"]
[Termination "suyu28 won by resignation"]

1. e4 {[%clk 0:03:01.9]} 1... e5 {[%clk 0:03:00.3]} 2. Nf3 {[%clk 0:02:58.8]}
2... Nc6 {[%clk 0:03:00.8]} 3. Bb5 {[%clk 0:03:00]} 3... Nf6 {[%clk 0:02:59.4]}
4. O-O {[%clk 0:02:59.9]} 4... Nxe4 {[%clk 0:03:00.1]} 5. Re1 {[%clk 0:03:00.6]}
5... Nd6 {[%clk 0:03:00.8]} 6. Nxe5 {[%clk 0:03:02]} 6... Be7 {[%clk 0:02:59.5]}
7. Bf1 {[%clk 0:03:02.8]} 7... Nxe5 {[%clk 0:03:00]} 8. Rxe5 {[%clk 0:03:04.7]}
8... O-O {[%clk 0:03:01.8]} 9. d4 {[%clk 0:03:06]} 9... Bf6 {[%clk 0:03:02.9]}
10. Re1 {[%clk 0:03:07.7]} 10... Nf5 {[%clk 0:03:00.9]} 11. c3 {[%clk 0:03:09]}
11... d5 {[%clk 0:03:01.6]} 12. Bd3 {[%clk 0:03:10.4]} 12... c6 {[%clk
0:02:58.2]} 13. Qc2 {[%clk 0:03:11.4]} 13... g6 {[%clk 0:02:58.7]} 14. Nd2
{[%clk 0:03:10.3]} 14... Nd6 {[%clk 0:02:59.1]} 15. Nf3 {[%clk 0:03:10.9]} 15...
Bf5 {[%clk 0:02:59.9]} 16. Bh6 {[%clk 0:03:11.4]} 16... Bg7 {[%clk 0:02:55.5]}
17. Bg5 {[%clk 0:03:12.2]} 17... Bf6 {[%clk 0:02:52.3]} 18. Bh6 {[%clk
0:03:12.8]} 18... Bg7 {[%clk 0:02:42.9]} 19. Bg5 {[%clk 0:03:13.8]} 19... f6
{[%clk 0:02:43.8]} 20. Bf4 {[%clk 0:03:14]} 20... Bxd3 {[%clk 0:02:44.7]} 21.
Qxd3 {[%clk 0:03:13.5]} 21... Ne4 {[%clk 0:02:46.2]} 22. Re2 {[%clk 0:03:12.2]}
22... Qd7 {[%clk 0:02:42.3]} 23. Rae1 {[%clk 0:03:12.7]} 23... Rfe8 {[%clk
0:02:40.7]} 24. Nd2 {[%clk 0:03:09.2]} 24... Nxd2 {[%clk 0:02:40.1]} 25. Bxd2
{[%clk 0:03:10]} 25... Kf7 {[%clk 0:02:39.2]} 26. Bf4 {[%clk 0:03:10.7]} 26...
Rxe2 {[%clk 0:02:32.1]} 27. Qxe2 {[%clk 0:03:10.9]} 27... Bf8 {[%clk 0:02:29.7]}
28. h3 {[%clk 0:03:06.7]} 28... h5 {[%clk 0:02:27.1]} 29. Qe3 {[%clk 0:03:05.1]}
29... a5 {[%clk 0:02:24.7]} 30. a4 {[%clk 0:03:05]} 30... b5 {[%clk 0:02:21.8]}
31. axb5 {[%clk 0:03:05.5]} 31... cxb5 {[%clk 0:02:22.3]} 32. Bh6 {[%clk
0:02:50.3]} 32... Be7 {[%clk 0:02:14.5]} 33. Bg7 {[%clk 0:02:48.9]} 33... b4
{[%clk 0:01:59.5]} 34. Qh6 {[%clk 0:02:49.3]} 34... Rg8 {[%clk 0:01:56.4]} 35.
Bh8 {[%clk 0:02:44.5]} 35... Bf8 {[%clk 0:01:15.1]} 36. Qh7+ {[%clk 0:02:44.6]}
36... Bg7 {[%clk 0:01:16.2]} 37. Bxg7 {[%clk 0:02:39.1]} 37... Rxg7 {[%clk
0:01:17.3]} 38. Qh8 {[%clk 0:02:40.2]} 38... Rg8 {[%clk 0:01:15.2]} 39. Qh7+
{[%clk 0:02:40.2]} 39... Rg7 {[%clk 0:01:16.6]} 40. Qh8 {[%clk 0:02:41.5]} 40...
bxc3 {[%clk 0:01:18.1]} 41. bxc3 {[%clk 0:02:41.7]} 41... a4 {[%clk 0:01:18.6]}
42. Qa8 {[%clk 0:02:39.7]} 42... Rg8 {[%clk 0:01:19.2]} 43. Qa5 {[%clk
0:02:35.1]} 43... Rb8 {[%clk 0:01:15.6]} 44. Ra1 {[%clk 0:02:31.1]} 44... Qc6
{[%clk 0:00:51.9]} 45. Rxa4 {[%clk 0:02:30.6]} 45... h4 {[%clk 0:00:43.9]} 46.
Rb4 {[%clk 0:01:53.9]} 46... Re8 {[%clk 0:00:34.5]} 47. Rb6 {[%clk 0:01:48.7]}
47... Re1+ {[%clk 0:00:32.9]} 48. Kh2 {[%clk 0:01:49.4]} 48... Qc7+ {[%clk
0:00:33.7]} 49. g3 {[%clk 0:01:49.6]} 49... hxg3+ {[%clk 0:00:29.9]} 50. Kg2
{[%clk 0:01:44.6]} 50... Re6 {[%clk 0:00:16.3]} 51. Rb5 {[%clk 0:01:30.3]} 51...
Qxa5 {[%clk 0:00:07.5]} 52. Rxa5 {[%clk 0:01:32.2]} 52... gxf2 {[%clk 0:00:08]}
53. Rxd5 {[%clk 0:01:32.4]} 53... Rc6 {[%clk 0:00:08.6]} 54. Kxf2 {[%clk
0:01:10.9]} 54... Rxc3 {[%clk 0:00:09.4]} 55. Kg2 {[%clk 0:01:11.2]} 55... Rd3
{[%clk 0:00:10.1]} 56. h4 {[%clk 0:01:07.3]} 56... Kg7 {[%clk 0:00:11.1]} 57.
Rd8 {[%clk 0:01:03.2]} 57... Kh6 {[%clk 0:00:11.5]} 58. d5 {[%clk 0:01:04.7]}
58... Kh5 {[%clk 0:00:12]} 59. d6 {[%clk 0:01:06]} 59... Kxh4 {[%clk 0:00:12.5]}
60. d7 {[%clk 0:01:06.5]} 60... Kg5 {[%clk 0:00:13.7]} 61. Kf2 {[%clk
0:01:07.2]} 61... f5 {[%clk 0:00:14.2]} 62. Ke2 {[%clk 0:01:08.7]} 62... Rd6
{[%clk 0:00:15.2]} 63. Ke3 {[%clk 0:01:10]} 63... Kg4 {[%clk 0:00:14.1]} 64. Ke2
{[%clk 0:01:09.2]} 64... g5 {[%clk 0:00:15]} 65. Ke3 {[%clk 0:01:10.3]} 65...
f4+ {[%clk 0:00:16.1]} 66. Ke4 {[%clk 0:01:06.3]} 66... f3 {[%clk 0:00:12.2]}
67. Ke3 {[%clk 0:01:05.3]} 67... Re6+ {[%clk 0:00:11.4]} 68. Kf2 {[%clk
0:01:05]} 68... Re2+ {[%clk 0:00:12.3]} 69. Kf1 {[%clk 0:01:06.1]} 69... Rd2
{[%clk 0:00:13.3]} 70. Ke1 {[%clk 0:01:03.5]} 70... Rd5 {[%clk 0:00:14.1]} 71.
Kf2 {[%clk 0:01:04.7]} 71... Rd3 {[%clk 0:00:15.1]} 72. Re8 {[%clk 0:00:54.1]}
72... Rd2+ {[%clk 0:00:13.8]} 73. Ke3 {[%clk 0:00:50]} 73... Rxd7 {[%clk
0:00:14.3]} 74. Re5 {[%clk 0:00:47.8]} 74... Rf7 {[%clk 0:00:13.2]} 75. Kf2
{[%clk 0:00:48.6]} 75... Rf4 {[%clk 0:00:08.8]} 76. Re8 {[%clk 0:00:48.9]} 76...
Ra4 {[%clk 0:00:09.3]} 77. Rh8 {[%clk 0:00:45.8]} 77... Ra2+ {[%clk 0:00:10]}
78. Ke3 {[%clk 0:00:46.8]} 78... Re2+ {[%clk 0:00:10.7]} 79. Kd3 {[%clk
0:00:47.9]} 79... Re7 {[%clk 0:00:12.2]} 80. Rf8 {[%clk 0:00:47.2]} 80... Kg3
{[%clk 0:00:13.2]} 81. Rf5 {[%clk 0:00:47.8]} 81... g4 {[%clk 0:00:14.1]} 82.
Rf7 {[%clk 0:00:48]} 82... Rxf7 {[%clk 0:00:14.7]} 0-1

[Event "*** Titled Tuesday Blitz"]
[Site "Chess.com"]
[Date "2018.09.04"]
[Round "1"]
[White "ozates"]
[Black "sergiochess83"]
[Result "0-1"]
[WhiteElo "2363"]
[BlackElo "2716"]
[TimeControl "180+2"]
[EndTime "13:46:48 PDT"]
[Termination "sergiochess83 won by resignation"]

1. e4 {[%clk 0:03:01.8]} 1... c6 {[%clk 0:03:00.5]} 2. d3 {[%clk 0:02:59]} 2...
d5 {[%clk 0:03:01.2]} 3. Nd2 {[%clk 0:02:58.1]} 3... g6 {[%clk 0:02:57.4]} 4.
Ngf3 {[%clk 0:02:58.2]} 4... Bg7 {[%clk 0:02:57.5]} 5. g3 {[%clk 0:02:58.2]}
5... e5 {[%clk 0:02:58.2]} 6. Bg2 {[%clk 0:02:59.2]} 6... Ne7 {[%clk 0:02:59]}
7. O-O {[%clk 0:03:00.6]} 7... O-O {[%clk 0:02:59.9]} 8. Re1 {[%clk 0:03:02]}
8... Nd7 {[%clk 0:02:59.7]} 9. a4 {[%clk 0:02:48.1]} 9... Re8 {[%clk 0:02:57.5]}
10. a5 {[%clk 0:02:48.7]} 10... Rb8 {[%clk 0:02:53.8]} 11. Nb3 {[%clk
0:02:47.4]} 11... b6 {[%clk 0:02:51]} 12. axb6 {[%clk 0:02:47.3]} 12... axb6
{[%clk 0:02:52.2]} 13. Bd2 {[%clk 0:02:19.7]} 13... Bb7 {[%clk 0:02:51.8]} 14.
Qc1 {[%clk 0:02:18.8]} 14... c5 {[%clk 0:02:45.8]} 15. Bh6 {[%clk 0:02:19]}
15... Bh8 {[%clk 0:02:36.1]} 16. h4 {[%clk 0:02:18.8]} 16... Qc7 {[%clk
0:02:33.2]} 17. h5 {[%clk 0:02:18.1]} 17... Ra8 {[%clk 0:02:31.8]} 18. Rxa8
{[%clk 0:02:15.8]} 18... Bxa8 {[%clk 0:02:31.9]} 19. hxg6 {[%clk 0:02:17.7]}
19... hxg6 {[%clk 0:02:32.4]} 20. Qg5 {[%clk 0:02:11.8]} 20... Bf6 {[%clk
0:02:15.1]} 21. Qg4 {[%clk 0:02:11.9]} 21... Nf8 {[%clk 0:02:15]} 22. Nbd2
{[%clk 0:02:08]} 22... Qd7 {[%clk 0:02:12]} 23. Qxd7 {[%clk 0:02:04.5]} 23...
Nxd7 {[%clk 0:02:13.9]} 24. Bh3 {[%clk 0:02:05.6]} 24... Bc6 {[%clk 0:02:04.3]}
25. exd5 {[%clk 0:01:59.7]} 25... Nxd5 {[%clk 0:02:04.2]} 26. Ne4 {[%clk
0:02:00.6]} 26... Bg7 {[%clk 0:01:38]} 27. Bxg7 {[%clk 0:01:56.8]} 27... Kxg7
{[%clk 0:01:39.9]} 28. Nd6 {[%clk 0:01:53.1]} 28... Rd8 {[%clk 0:01:41]} 29. Ng5
{[%clk 0:01:44.1]} 29... Rf8 {[%clk 0:01:04]} 30. Bxd7 {[%clk 0:01:36.4]} 30...
Bxd7 {[%clk 0:01:04.6]} 31. Rxe5 {[%clk 0:01:37.9]} 31... Bc6 {[%clk 0:01:05.8]}
32. c4 {[%clk 0:01:32.2]} 32... Nb4 {[%clk 0:01:02.5]} 33. Re3 {[%clk
0:01:09.7]} 33... Rd8 {[%clk 0:01:03.1]} 34. Ngxf7 {[%clk 0:01:07.8]} 34... Rd7
{[%clk 0:01:03.5]} 35. Kf1 {[%clk 0:00:59]} 35... Rxf7 {[%clk 0:01:03.8]} 36.
Nxf7 {[%clk 0:01:00.9]} 36... Kxf7 {[%clk 0:01:05.7]} 37. Ke2 {[%clk 0:01:02.4]}
37... Nc2 {[%clk 0:00:59.7]} 38. Re5 {[%clk 0:00:57.6]} 38... Nd4+ {[%clk
0:01:00.5]} 39. Kd1 {[%clk 0:00:52.9]} 39... Bf3+ {[%clk 0:00:41.7]} 40. Kd2
{[%clk 0:00:48.9]} 40... Bg4 {[%clk 0:00:31.2]} 41. Kc3 {[%clk 0:00:39.9]} 41...
Bf5 {[%clk 0:00:25.1]} 42. Re1 {[%clk 0:00:35]} 42... Nc6 {[%clk 0:00:20.3]} 43.
Rd1 {[%clk 0:00:25.8]} 43... g5 {[%clk 0:00:20.2]} 44. f3 {[%clk 0:00:26.5]}
44... Kf6 {[%clk 0:00:20.6]} 45. g4 {[%clk 0:00:26.6]} 45... Bg6 {[%clk
0:00:21.3]} 46. b3 {[%clk 0:00:26.3]} 46... Nd4 {[%clk 0:00:11.8]} 47. b4 {[%clk
0:00:24.9]} 47... Ne2+ {[%clk 0:00:09.5]} 48. Kd2 {[%clk 0:00:25]} 48... Nf4
{[%clk 0:00:10]} 49. bxc5 {[%clk 0:00:24]} 49... bxc5 {[%clk 0:00:11.9]} 50. Ke3
{[%clk 0:00:25.4]} 50... Ke5 {[%clk 0:00:12.8]} 51. Rd2 {[%clk 0:00:20.9]} 51...
Bh7 {[%clk 0:00:12.8]} 52. Rd1 {[%clk 0:00:18.8]} 52... Ng2+ {[%clk 0:00:11.8]}
53. Kf2 {[%clk 0:00:19.5]} 53... Nf4 {[%clk 0:00:13.7]} 54. Ke3 {[%clk
0:00:20.6]} 54... Bg6 {[%clk 0:00:13.3]} 55. Rd2 {[%clk 0:00:21.1]} 55... Ne6
{[%clk 0:00:12.6]} 56. Ra2 {[%clk 0:00:20.1]} 56... Nf4 {[%clk 0:00:13.8]} 57.
Ra6 {[%clk 0:00:20.3]} 57... Bxd3 {[%clk 0:00:12.5]} 58. Rc6 {[%clk 0:00:21.1]}
58... Bxc4 {[%clk 0:00:13.6]} 59. Rxc5+ {[%clk 0:00:22]} 59... Bd5 {[%clk
0:00:14.7]} 60. Ra5 {[%clk 0:00:22.9]} 60... Ng2+ {[%clk 0:00:12.3]} 61. Kf2
{[%clk 0:00:24.1]} 61... Nh4 {[%clk 0:00:13.4]} 62. Ra3 {[%clk 0:00:25.1]} 62...
Kf4 {[%clk 0:00:13]} 63. Ra4+ {[%clk 0:00:25.3]} 63... Ke5 {[%clk 0:00:14.2]}
64. Ra3 {[%clk 0:00:25.6]} 64... Nxf3 {[%clk 0:00:04.9]} 65. Kg3 {[%clk
0:00:23.5]} 65... Nd2 {[%clk 0:00:05.2]} 66. Ra7 {[%clk 0:00:21.4]} 66... Ne4+
{[%clk 0:00:06]} 67. Kh3 {[%clk 0:00:22.4]} 67... Be6 {[%clk 0:00:06.2]} 68.
Ra5+ {[%clk 0:00:23.2]} 68... Kf6 {[%clk 0:00:07.1]} 69. Ra4 {[%clk 0:00:22]}
69... Ke5 {[%clk 0:00:07.7]} 70. Ra5+ {[%clk 0:00:22.3]} 70... Kf4 {[%clk
0:00:08.9]} 71. Ra4 {[%clk 0:00:23.4]} 71... Bxg4+ {[%clk 0:00:09.9]} 72. Kh2
{[%clk 0:00:25]} 72... Bf3 {[%clk 0:00:11.8]} 73. Ra8 {[%clk 0:00:24.3]} 73...
g4 {[%clk 0:00:13]} 74. Rf8+ {[%clk 0:00:25.8]} 74... Ke3 {[%clk 0:00:14.2]} 75.
Rg8 {[%clk 0:00:24.5]} 75... Kf2 {[%clk 0:00:14.4]} 76. Rg7 {[%clk 0:00:18.1]}
76... Nd2 {[%clk 0:00:13.3]} 0-1